fUSD/lending_fUSD_20240730
["ID","MTS","AMOUNT","RATE_DAILY","PERIOD"]
[333703205,1722378632963,-287.37338502,0.000108,2]
[333703206,1722378632974,-2613.50210701,0.000108,2]
[333703207,1722378632986,-991.38567962,0.000108,2]
[333703208,1722378632997,-525.7141499,0.000108,2]
[333703209,1722378633020,-413.47322908,0.000108,2]
[333703210,1722378633031,-1579.80960355,0.000108,2]
[333703211,1722378633042,-8770.3115774,0.000108,2]
[333703212,1722378633053,-777.495996,0.000108,2]
[333703213,1722378633064,-1208.94468653,0.000108,2]
[333703239,1722378638385,-991.17307876,0.000108,2]
[333703242,1722378638397,-728.65203404,0.000108,2]
[333703253,1722378638632,-442.25,0.000108,2]
[333703254,1722378638656,-5270.0,0.000108,2]
[333703255,1722378638667,-515.28705452,0.000108,2]
[333703256,1722378638680,-1134.70787623,0.000108,2]
[333703257,1722378638691,-307.07755376,0.000108,2]
[333703258,1722378638702,-916.92440523,0.000108,2]
[333703259,1722378638714,-19137.89899619,0.000108,2]
[333703260,1722378638727,-762.28544196,0.000108,2]
[333703261,1722378638741,-23996.93107085,0.000108,2]
[333703262,1722378638755,-4852.6012,0.000108,2]
[333703263,1722378638767,-10535.96684458,0.000108,2]
[333703264,1722378638790,-35849.47465954,0.000108,2]
[333703265,1722378638802,-1041.06219095,0.000108,2]
[333703266,1722378638813,-3107.05121477,0.000108,2]
[333703267,1722378638824,-5213.2416444,0.000108,2]
[333703268,1722378638837,-10057.58,0.000108,2]
[333703269,1722378638849,-6427.0878349,0.000108,2]
[333703274,1722378638887,-3861.57904239,0.000108,2]
[333703277,1722378638900,-5139.54579721,0.000108,2]
[333703279,1722378638911,-7570.38815316,0.000108,2]
[333703281,1722378638922,-827.72049781,0.000108,2]
[333703283,1722378638935,-318.89107605,0.000108,2]
[333703285,1722378638945,-1167.56978197,0.000108,2]
[333703287,1722378638956,-2813.01206518,0.000108,2]
[333703314,1722378640533,-322.85018007,0.000108,2]
[333703315,1722378640544,-24104.6103854,0.000108,2]
[333703316,1722378640556,-307.46014093,0.000108,2]
[333703317,1722378640567,-474.8691016,0.000108,2]
[333703318,1722378640658,-273.69873945,0.000108,2]
[333703319,1722378640669,-2517.97865348,0.000108,2]
[333703320,1722378641077,-680.67,0.000108,2]
[333703321,1722378641088,-5522.88565678,0.000108,2]
[333703322,1722378641100,-65864.16137191,0.000108,2]
[333703323,1722378641115,-3891.36684221,0.000108,2]
[333703324,1722378641146,-338642.58192207,0.000108,2]
[333703325,1722378641169,-1413.08096614,0.000108,2]
[333703326,1722378641181,-30305.85968867,0.000108,2]
[333703327,1722378641192,-347.78074878,0.000108,2]
[333703328,1722378641204,-843.15773648,0.000108,2]
[333703329,1722378641215,-3482.59104684,0.000108,2]
[333703330,1722378641226,-487.73034388,0.000108,2]
[333703331,1722378641237,-503.4787228,0.000108,2]
[333703332,1722378641248,-540.18000005,0.000108,2]
[333703333,1722378641260,-1079.800005,0.000108,2]
[333703334,1722378641275,-5117.89307753,0.000108,2]
[333703353,1722378643584,-18874.65310769,0.000108,2]
[333703354,1722378643595,-33539.00000004,0.000108,2]
[333703377,1722378643863,-1085.140985,0.000108,2]
[333703378,1722378643878,-711.51228327,0.000108,2]
[333703379,1722378643890,-630.18302999,0.000108,2]
[333703380,1722378643903,-1224.01061712,0.000108,2]
[333703381,1722378643919,-442.92172917,0.000108,2]
[333703382,1722378643930,-335.24999999,0.000108,2]
[333703384,1722378643941,-67268.84094529,0.000108,2]
[333703386,1722378643952,-297.59077079,0.000108,2]
[333703387,1722378643963,-276.224985,0.000108,2]
[333703421,1722378646698,-1675.2,0.000108,2]
[333703423,1722378646710,-3325.0,0.000108,2]
[333703451,1722378646999,-13859.30902558,0.000108,2]
[333703453,1722378647011,-828.18787916,0.000108,2]
[333703457,1722378647039,-187.07755,0.0001078,2]
[333703459,1722378647048,-704.52244964,0.000108,2]
[333703522,1722378688914,883.68962078,8.231e-05,2]
[333703523,1722378763496,282.7207589,8.231e-05,2]
[333703524,1722378765059,804.00022228,8.231e-05,2]
[333703525,1722378765081,828.78037373,8.231e-05,2]
[333703526,1722378866107,344.89,8.219e-05,2]
[333703527,1722378915828,150.073107,0.00025,60]
[333703528,1722379417426,327.64,8.219e-05,2]
[333703529,1722379485102,624.19552479,8.219e-05,2]
[333703530,1722379515864,624.19552479,8.219e-05,2]
[333703565,1722379831553,-529.28,9.734e-05,2]
[333703567,1722379831563,-640.33202254,9.816e-05,2]
[333703569,1722379831573,-45.4638834,9.817e-05,2]
[333703573,1722379831600,-108.2361166,9.817e-05,2]
[333703575,1722379831610,-470.72,9.841e-05,2]
[333703577,1722379831619,-200.0,9.9e-05,3]
[333703579,1722379831629,-250.0,9.977e-05,2]
[333703581,1722379831639,-1250.0,0.0001,2]
[333703583,1722379831648,-420.42,0.0001,2]
[333703585,1722379831657,-340.17937723,0.0001,2]
[333703588,1722379831748,-149.14062277,0.0001,2]
[333703589,1722379831757,-500.0,0.0001,3]
[333703590,1722379831767,-6.00937723,0.00010099,2]
[333703591,1722379831779,-293.99062277,0.00010099,2]
[333703592,1722379831789,-300.0,0.00010099,2]
[333703593,1722379831798,-800.0,0.000101,3]
[333703594,1722379831807,-1100.0,0.000102,3]
[333703595,1722379831816,-999.99,0.000103,2]
[333703596,1722379831826,-1400.0,0.000103,3]
[333703597,1722379831835,-200.0,0.000104,3]
[333703598,1722379831845,-327.64,0.00010465,2]
[333703599,1722379831855,-200.0,0.000105,3]
[333703600,1722379831865,-150.75,0.00010578,2]
[333703601,1722379831875,-374.21,0.00010578,2]
[333703602,1722379831884,-200.0,0.000106,3]
[333703603,1722379831894,-150.0,0.00010699,2]
[333703604,1722379831903,-5714.9806,0.000107,2]
[333703605,1722379831913,-169.84462218,0.000107,2]
[333703606,1722379831923,-500.0,0.000107,2]
[333703607,1722379831933,-338.15330343,0.000107,2]
[333703608,1722379831948,-300.0,0.000107,2]
[333703609,1722379831960,-829.63569657,0.000107,2]
[333703610,1722379831969,-7533.67099908,0.000107,2]
[333703611,1722379831981,-1056.0,0.000107,2]
[333703612,1722379831997,-557.07764247,0.000107,2]
[333703613,1722379832008,-1679.06194262,0.000107,2]
[333703616,1722379837648,-11122.61009273,0.000107,2]
[333703617,1722379837660,-709.08266212,0.000107,2]
[333703618,1722379837675,-2713.35802244,0.000107,2]
[333703619,1722379837702,-712.43225591,0.000107,2]
[333703620,1722379837752,-1605.98,0.000107,2]
[333703621,1722379837764,-651.02323732,0.000107,2]
[333703622,1722379837813,-7043.18906184,0.000107,2]
[333703623,1722379837824,-948.06124572,0.000107,2]
[333703624,1722379837863,-20074.55713775,0.000107,2]
[333703625,1722379837872,-165.80379858,0.000107,2]
[333703626,1722379837881,-633.4911,0.000107,2]
[333703627,1722379837890,-200.0,0.000107,3]
[333703628,1722379837899,-209366.66648813,0.000108,2]
[333703629,1722379837913,-41567.92804241,0.000108,2]
[333703635,1722379839671,-8377.97250013,0.000108,2]
[333703636,1722379839873,-1704.7653345,0.000108,2]
[333703637,1722379839885,-656.66,0.000108,2]
[333703643,1722379840007,-462.7030002,0.000108,2]
[333703644,1722379840057,-1311.31,0.000108,2]
[333703646,1722379842663,-436.78998372,0.000108,2]
[333703647,1722379842705,-1217.50675063,0.000108,2]
[333703648,1722379842745,-1788.80589231,0.000108,2]
[333703649,1722379842879,-33208.99999999,0.000108,2]
[333703650,1722379842890,-32621.08850002,0.000108,2]
[333703651,1722379842901,-1433.76304378,0.000108,2]
[333703652,1722379842912,-1419711.5393821,0.000108,2]
[333703661,1722379845707,-1819.32821834,0.000108,2]
[333703662,1722379845718,-1014.8698506,0.000108,2]
[333703663,1722379845730,-888.15322301,0.000108,2]
[333703664,1722379845741,-6641.0,0.000108,2]
[333703665,1722379845768,-302.0,0.000108,2]
[333703667,1722379845780,-1578.49314389,0.000108,2]
[333703690,1722379893875,343.15,8.318e-05,2]
[333703691,1722380416276,325.99,8.261e-05,2]
[333703708,1722380924932,309.69,8.219e-05,2]
[333703710,1722381032042,-300.0,9.961e-05,2]
[333703711,1722381032052,-1500.0,9.962e-05,2]
[333703713,1722381037924,-500.0,0.0001,2]
[333703714,1722381037936,-1250.0,0.0001,2]
[333703715,1722381037946,-250.0,0.00010002,2]
[333703716,1722381037956,-6787.38,0.00010036,2]
[333703717,1722381037966,-423.43,0.00010059,2]
[333703718,1722381037976,-576.57,0.00010186,2]
[333703719,1722381037988,-309.69,0.0001048,2]
[333703720,1722381037998,-500.0,0.000105,2]
[333703721,1722381038008,-3934.08397264,0.000105,2]
[333703722,1722381038020,-321.97602736,0.000105,2]
[333703723,1722381038030,-4553.0219081,0.000107,2]
[333703724,1722381038042,-679.4653919,0.000107,2]
[333703725,1722381038051,-2562.1721081,0.000107,2]
[333703726,1722381038068,-2500.0,0.000107,2]
[333703727,1722381038079,-72573.36826942,0.000107,2]
[333703728,1722381038094,-678.46643896,0.000107,2]
[333703729,1722381038107,-680.9102,0.000107,2]
[333703730,1722381038118,-1015.57365664,0.000107,2]
[333703731,1722381038129,-17550.4999998,0.000107,2]
[333703738,1722381040014,-2010.0,0.000107,2]
[333703739,1722381040086,-429.00932708,0.000107,2]
[333703740,1722381040096,-2057.4,0.000107,2]
[333703741,1722381040106,-1074.0,0.00010706,2]
[333703742,1722381040115,-69714.28939147,0.000108,2]
[333703743,1722381040127,-934.08148399,0.000108,2]
[333703744,1722381040138,-365.32105664,0.000108,2]
[333703745,1722381040167,-2454.94273917,0.000108,2]
[333703746,1722381040179,-1352.74328221,0.000108,2]
[333703747,1722381040192,-1180.22303273,0.000108,2]
[333703748,1722381040205,-466.51281727,0.000108,2]
[333703749,1722381040216,-1594.4435325,0.000108,2]
[333703750,1722381040232,-40598.05593484,0.000108,2]
[333703751,1722381040245,-9354.98725606,0.000108,2]
[333703752,1722381040286,-24002.75152452,0.000108,2]
[333703753,1722381040296,-412.72446229,0.000108,2]
[333703754,1722381040306,-181.64348729,0.000108,2]
[333703755,1722381040315,-257.10019294,0.000108,2]
[333703768,1722381042947,-1919.52883686,0.0001069,2]
[333703769,1722381043006,-460.35272284,0.0001069,2]
[333703786,1722381420639,300.78,8.219e-05,2]
[333703787,1722381450234,1008.47074441,8.219e-05,2]
[333703790,1722381478889,1239.58465842,8.219e-05,2]
[333703791,1722381483163,3722.63317386,8.219e-05,2]
[333703792,1722381483187,3979.92355987,8.219e-05,2]
[333703793,1722381496121,961.42333399,8.219e-05,2]
[333703794,1722381508550,5058.65310614,8.219e-05,2]
[333703795,1722381508573,924.86129589,8.219e-05,2]
[333703796,1722381525980,797.48730297,8.219e-05,2]
[333703797,1722381626908,2000.0,0.00025,60]
[333703799,1722381885774,285.74,8.219e-05,2]
[333703824,1722382232105,-338.75,9.623e-05,2]
[333703825,1722382232115,-236.34,9.699e-05,2]
[333703826,1722382232125,-1233.89,9.729e-05,2]
[333703827,1722382232134,-300.0,9.733e-05,2]
[333703828,1722382232144,-13122.07,9.734e-05,2]
[333703829,1722382232154,-859.49,9.8e-05,2]
[333703830,1722382232163,-661.25,9.878e-05,2]
[333703831,1722382232173,-300.0,9.9e-05,3]
[333703832,1722382232183,-153.7,9.908e-05,2]
[333703833,1722382232193,-700.0,0.0001,3]
[333703834,1722382232203,-1000.0,0.000101,3]
[333703835,1722382232213,-1400.0,0.000102,3]
[333703836,1722382232223,-1800.0,0.000103,3]
[333703837,1722382232233,-300.0,0.000104,3]
[333703838,1722382232242,-285.74,0.00010463,2]
[333703839,1722382232252,-300.0,0.000105,3]
[333703840,1722382232262,-150.0,0.0001056,2]
[333703841,1722382232271,-150.0,0.00010575,2]
[333703842,1722382232280,-941.0779,0.0001059,2]
[333703843,1722382232290,-150.0,0.00010597,2]
[333703844,1722382232299,-300.0,0.000106,3]
[333703845,1722382232309,-1500.0,0.00010644,2]
[333703846,1722382232319,-1500.0,0.00010655,2]
[333703847,1722382232329,-1500.0,0.00010655,2]
[333703848,1722382232339,-1496.56344227,0.0001067,2]
[333703849,1722382232349,-235.1255694,0.00010675,2]
[333703850,1722382232358,-1500.0,0.00010688,2]
[333703851,1722382232367,-1500.0,0.00010695,2]
[333703852,1722382232377,-414.5634,0.000107,2]
[333703853,1722382232386,-5018.9755,0.000107,2]
[333703855,1722382232396,-990.8623,0.000107,2]
[333703857,1722382232405,-300.0,0.000107,3]
[333703859,1722382232415,-1500.0,0.00010705,2]
[333703860,1722382232425,-420.0,0.00010706,2]
[333703861,1722382232434,-1500.0,0.00010707,2]
[333703862,1722382232443,-150.0,0.0001071,2]
[333703863,1722382232453,-150.0,0.00010718,2]
[333703864,1722382232462,-150.0,0.00010723,2]
[333703865,1722382232471,-150.0,0.00010726,2]
[333703866,1722382232481,-1500.0,0.00010727,2]
[333703867,1722382232491,-300.0,0.00010733,2]
[333703868,1722382232501,-1500.0,0.00010737,2]
[333703869,1722382232510,-1500.0,0.00010738,2]
[333703870,1722382232519,-150.0,0.00010756,2]
[333703871,1722382232530,-150.0,0.00010757,2]
[333703872,1722382232539,-1500.0,0.00010765,2]
[333703873,1722382232548,-1500.0,0.00010766,2]
[333703874,1722382232558,-150.0,0.0001077,2]
[333703875,1722382232567,-150.0,0.0001077,2]
[333703876,1722382232577,-1500.0,0.00010772,2]
[333703877,1722382232586,-1500.0,0.00010776,2]
[333703878,1722382232595,-1500.0,0.00010776,2]
[333703879,1722382232604,-1500.0,0.00010781,2]
[333703880,1722382232614,-1500.0,0.0001079,2]
[333703881,1722382232623,-7654.231633,0.00010793,2]
[333703882,1722382232633,-300.0,0.00010794,2]
[333703883,1722382232642,-1500.0,0.00010795,2]
[333703884,1722382232651,-300.0,0.00010797,2]
[333703885,1722382232660,-5946.97813014,0.00010799,2]
[333703886,1722382232669,-150.01,0.00010799,2]
[333703887,1722382232679,-150.0,0.00010799,2]
[333703888,1722382232688,-1500.0,0.00010799,2]
[333703889,1722382232697,-2000.0,0.000108,2]
[333703890,1722382232706,-200.0,0.000108,2]
[333703891,1722382232716,-2000.0,0.000108,2]
[333703892,1722382232725,-200.0,0.000108,2]
[333703893,1722382232735,-22247.52599506,0.000108,2]
[333703894,1722382232744,-915.0,0.000108,3]
[333703895,1722382232754,-3000.0,0.000108,2]
[333703896,1722382232766,-1500.0,0.00010802,2]
[333703897,1722382232775,-1500.0,0.00010808,2]
[333703898,1722382232791,-150.0,0.00010812,2]
[333703899,1722382232801,-446.83921309,0.00010816,2]
[333703900,1722382232811,-150.0,0.00010822,2]
[333703901,1722382232820,-338.75,0.00010826,2]
[333703902,1722382232830,-150.0,0.00010833,2]
[333703903,1722382232839,-1500.0,0.00010834,2]
[333703904,1722382232848,-150.0,0.00010837,2]
[333703905,1722382232857,-150.0,0.00010841,2]
[333703906,1722382232866,-1500.0,0.00010842,2]
[333703907,1722382232875,-150.0,0.00010856,2]
[333703908,1722382232885,-206.57304313,0.00010863,2]
[333703909,1722382232894,-1500.0,0.00010865,2]
[333703910,1722382232903,-300.0,0.00010865,2]
[333703911,1722382232912,-1500.0,0.00010865,2]
[333703912,1722382232922,-1500.0,0.00010876,2]
[333703913,1722382232930,-150.0,0.00010876,2]
[333703914,1722382232940,-82226.13761947,0.0001088,2]
[333703915,1722382232950,-150.0,0.0001088,2]
[333703916,1722382232963,-1386.33856205,0.00010883,2]
[333703917,1722382232972,-1500.0,0.00010885,2]
[333703918,1722382232981,-36809.36479078,0.0001089,2]
[333703919,1722382233566,-3172.63520922,0.0001089,2]
[333703920,1722382233575,-1500.0,0.00010898,2]
[333703921,1722382233584,-1869.2975,0.000109,2]
[333703922,1722382233593,-324.61783536,0.000109,2]
[333703923,1722382233602,-160.45561431,0.000109,2]
[333703924,1722382233611,-160.45561431,0.000109,2]
[333703925,1722382233620,-633.46582986,0.000109,2]
[333703926,1722382233629,-160.45561431,0.000109,2]
[333703927,1722382233639,-517.61678263,0.000109,2]
[333703928,1722382233650,-1192.54351712,0.000109,2]
[333703929,1722382233659,-1710.16029976,0.000109,2]
[333703930,1722382233668,-1508.70219132,0.000109,2]
[333703933,1722382238303,-150.01,0.00010799,2]
[333703934,1722382238313,-392.98403541,0.00010799,2]
[333703935,1722382238356,-1150.70425807,0.00010799,2]
[333703936,1722382238368,-868.25323375,0.00010799,2]
[333703937,1722382238377,-791.46972787,0.000109,2]
[333703938,1722382238391,-1076.89572889,0.000109,2]
[333703939,1722382238400,-331.60759712,0.000109,2]
[333703940,1722382238410,-17450.11183701,0.000109,2]
[333703941,1722382238422,-3946.87784248,0.000109,2]
[333703942,1722382238431,-300.0,0.00010902,2]
[333703943,1722382238441,-300.0,0.00010906,2]
[333703944,1722382238450,-300.0,0.00010906,2]
[333703945,1722382238459,-2000.0,0.00010908,2]
[333703946,1722382238468,-200.0,0.00010908,2]
[333703955,1722382238633,-2000.0,0.00010908,2]
[333703956,1722382238644,-200.0,0.00010908,2]
[333703957,1722382238654,-1500.0,0.00010909,2]
[333703958,1722382238663,-300.0,0.00010911,2]
[333703959,1722382238673,-1500.0,0.00010913,2]
[333703960,1722382238684,-300.0,0.00010918,2]
[333703961,1722382238695,-300.0,0.00010929,2]
[333703962,1722382238704,-150.0,0.00010943,2]
[333703963,1722382238715,-150.0,0.00010951,2]
[333703964,1722382238726,-6342.12,0.0001096,2]
[333703965,1722382238735,-621.0,0.0001096,2]
[333703966,1722382238746,-1074.0,0.0001096,2]
[333703967,1722382238760,-150.0,0.0001098,2]
[333703968,1722382238769,-150.0,0.0001098,2]
[333703969,1722382238779,-681.86321499,0.0001099,2]
[333703970,1722382238788,-1000.0,0.0001099,2]
[333703971,1722382238797,-8254.850766,0.00010992,2]
[333703972,1722382238806,-1172.15167843,0.00010992,2]
[333703973,1722382238909,-7683.31822047,0.00010992,2]
[333703974,1722382238920,-3924.72736791,0.00010992,2]
[333703975,1722382238931,-427.20419193,0.00010992,2]
[333703976,1722382238944,-500.0,0.00010992,2]
[333703979,1722382240263,-1729.84999999,0.000109,2]
[333703980,1722382240276,-1360.63120001,0.000109,2]
[333703981,1722382240286,-4604.15747196,0.00010992,2]
[333703982,1722382240296,-11016.75956688,0.00010997,2]
[333703983,1722382240305,-1215.60694881,0.00010999,3]
[333703984,1722382240315,-150.0,0.00010999,2]
[333703985,1722382240324,-150.0,0.00010999,7]
[333703986,1722382240333,-354.08689131,0.00010999,2]
[333703987,1722382240342,-500.0,0.00010999,2]
[333703988,1722382240352,-7327.26554543,0.00011,2]
[333703989,1722382240367,-644.08472678,0.00011,2]
[333703990,1722382240378,-376.955934,0.00011,2]
[333704008,1722382244113,-6102.1638032,0.00011,2]
[333704009,1722382244125,-7781.99189454,0.00011,2]
[333704010,1722382244160,-2209.22108084,0.00011,2]
[333704011,1722382244187,-5967.57370409,0.00011,2]
[333704012,1722382244198,-1124.02077438,0.00011,2]
[333704013,1722382244221,-6020.50980002,0.00011,2]
[333704014,1722382244234,-16752.72635813,0.00011,2]
[333704015,1722382244246,-185317.59544822,0.00011,2]
[333704016,1722382244256,-1118140.52471194,0.00011,2]
[333704018,1722382244274,-715.36994382,0.00011,2]
[333704021,1722382244286,-1255.06367634,0.00011,2]
[333704023,1722382244297,-9640.10867753,0.00011,2]
[333704025,1722382244309,-748.63230573,0.00011,2]
[333704027,1722382244320,-1634.38840113,0.00011,2]
[333704031,1722382244347,-650.36277005,0.00011,2]
[333704033,1722382244358,-1599.08934919,0.00011,2]
[333704035,1722382244369,-873.04153788,0.00011,2]
[333704037,1722382244380,-443.07349567,0.00011,2]
[333704039,1722382244391,-3593.78666846,0.00011,2]
[333704042,1722382244403,-931.13278959,0.00011,2]
[333704044,1722382244414,-427.18428536,0.00011,2]
[333704046,1722382244426,-537.88,0.00011,2]
[333704048,1722382244437,-768.44720034,0.00011,2]
[333704050,1722382244449,-831.48450349,0.00011,2]
[333704055,1722382244483,-1570.55517767,0.00011,2]
[333704057,1722382244494,-1314.84081101,0.00011,2]
[333704059,1722382244505,-6459.35253181,0.00011,2]
[333704061,1722382244516,-839.10109103,0.00011,2]
[333704064,1722382244527,-286.93626806,0.00011,2]
[333704092,1722382246204,-1295.87497203,0.00010421,2]
[333704093,1722382246215,-865.69564147,0.00010421,2]
[333704094,1722382246225,-2828.23442102,0.00011,2]
[333704095,1722382246237,-3666.82998998,0.00011,2]
[333704096,1722382246260,-29345.15677151,0.00011,2]
[333704097,1722382246271,-585.79333653,0.00011,2]
[333704098,1722382246282,-473.62789852,0.00011,2]
[333704099,1722382246293,-430.18684934,0.00011,2]
[333704100,1722382246305,-6985.44336142,0.00011,2]
[333704101,1722382246316,-13724.42295106,0.00011,2]
[333704102,1722382246345,-5143.26,0.00011,2]
[333704103,1722382246357,-30861.97877135,0.00011,2]
[333704104,1722382246368,-5440.9818521,0.00011,2]
[333704105,1722382246379,-2563.31968009,0.00011,2]
[333704106,1722382246426,-1740.74654837,0.00011,2]
[333704107,1722382246437,-1590.54422669,0.00011,2]
[333704108,1722382246448,-1862.13435004,0.00011,2]
[333704109,1722382246459,-5385.10398628,0.00011,2]
[333704110,1722382246471,-553.56974129,0.00011,2]
[333704111,1722382246482,-1766.8052,0.00011,2]
[333704112,1722382246494,-581.670534,0.00011,2]
[333704113,1722382246505,-11823.59982305,0.00011,2]
[333704114,1722382246516,-1671.17631581,0.00011,2]
[333704115,1722382246527,-8388.26784103,0.00011,2]
[333704116,1722382246539,-4349.09017876,0.00011,2]
[333704117,1722382246550,-596.79156854,0.00011,2]
[333704118,1722382246561,-1224.15458915,0.00011,2]
[333704119,1722382246572,-458.27649239,0.00011,2]
[333704120,1722382246583,-506.28464956,0.00011,2]
[333704121,1722382246594,-11753.76194839,0.00011,2]
[333704122,1722382246605,-2439.94300744,0.00011,2]
[333704123,1722382246630,-356.68300324,0.00011,2]
[333704124,1722382246641,-609.53823585,0.00011,2]
[333704125,1722382246802,-2353.21410219,0.00011,2]
[333704126,1722382246814,-1000.54103258,0.00011,2]
[333704133,1722382599898,299.84,8.219e-05,2]
[333704134,1722382665321,419.0,0.00027,120]
[333704138,1722383107220,284.84,8.219e-05,2]
[333704166,1722383432209,-1192.8949193,9.193e-05,2]
[333704167,1722383432268,-1862.5250807,9.193e-05,2]
[333704168,1722383432277,-796.75,9.195e-05,2]
[333704169,1722383432287,-300.0,9.199e-05,2]
[333704170,1722383432296,-300.0,9.199e-05,2]
[333704171,1722383432306,-8537.91,9.2e-05,2]
[333704172,1722383432315,-8196.19,9.275e-05,2]
[333704173,1722383432324,-1935.67,9.275e-05,2]
[333704174,1722383432334,-173.07,9.302e-05,2]
[333704175,1722383432343,-203.25,9.319e-05,2]
[333704176,1722383432353,-2655.27,9.694e-05,2]
[333704177,1722383432363,-2655.27,9.696e-05,2]
[333704178,1722383432372,-2655.27,9.699e-05,2]
[333704179,1722383432381,-150.99,9.699e-05,2]
[333704180,1722383432391,-22503.07,9.699e-05,2]
[333704181,1722383432400,-2655.27,9.701e-05,2]
[333704182,1722383432409,-2655.27,9.704e-05,2]
[333704183,1722383432419,-150.0,9.706e-05,2]
[333704184,1722383432428,-2655.27,9.707e-05,2]
[333704185,1722383432437,-2655.27,9.709e-05,2]
[333704186,1722383432447,-2655.27,9.712e-05,2]
[333704187,1722383432456,-450.12,9.712e-05,2]
[333704188,1722383432466,-2655.27,9.714e-05,2]
[333704189,1722383432475,-2655.27,9.717e-05,2]
[333704190,1722383432484,-2655.27,9.719e-05,2]
[333704191,1722383432498,-2655.27,9.722e-05,2]
[333704192,1722383432508,-2655.27,9.724e-05,2]
[333704193,1722383432517,-2655.27,9.727e-05,2]
[333704194,1722383432526,-2655.27,9.73e-05,2]
[333704195,1722383432535,-2655.27,9.732e-05,2]
[333704196,1722383432545,-2655.27,9.735e-05,2]
[333704197,1722383432554,-2655.27,9.737e-05,2]
[333704198,1722383432563,-2655.27,9.74e-05,2]
[333704199,1722383432572,-2655.27,9.742e-05,2]
[333704200,1722383432582,-191.15,9.888e-05,2]
[333704201,1722383432591,-19680.32961465,9.962e-05,2]
[333704203,1722383432600,-1250.0,0.0001,2]
[333704205,1722383432609,-3800.0,0.0001,2]
[333704207,1722383432618,-420.0,0.00010119,2]
[333704209,1722383432627,-420.0,0.00010119,2]
[333704211,1722383432636,-924.92,0.00010141,2]
[333704213,1722383432646,-796.75,0.00010345,2]
[333704215,1722383432655,-2804.45,0.00010411,2]
[333704217,1722383432664,-284.84,0.00010438,2]
[333704219,1722383432673,-203.25,0.00010484,2]
[333704221,1722383432683,-23272.2304,0.0001068,2]
[333704223,1722383432692,-30094.889,0.0001068,2]
[333704225,1722383432701,-327.775,0.0001068,2]
[333704226,1722383432710,-3960.5705,0.0001068,2]
[333704227,1722383432719,-1000.0,0.0001068,2]
[333704229,1722383432728,-150.0,0.000107,2]
[333704231,1722383432737,-150.0,0.00010719,2]
[333704233,1722383432746,-150.0,0.00010727,2]
[333704235,1722383432755,-300.0,0.00010735,2]
[333704237,1722383432766,-1500.0,0.00010743,2]
[333704239,1722383432775,-150.0,0.00010746,2]
[333704241,1722383432787,-1500.0,0.00010755,2]
[333704242,1722383432796,-150.0,0.0001076,2]
[333704244,1722383432805,-2624.24139058,0.0001077,2]
[333704246,1722383432815,-150.0,0.0001077,2]
[333704248,1722383432824,-150.0,0.0001077,2]
[333704250,1722383432833,-150.0,0.00010771,2]
[333704252,1722383432842,-1500.0,0.00010773,2]
[333704254,1722383432851,-233306.3657,0.0001078,2]
[333704256,1722383432861,-1000.0,0.0001078,2]
[333704258,1722383432870,-21210.3587,0.0001078,2]
[333704260,1722383432879,-601.9732,0.0001078,2]
[333704261,1722383432888,-1500.0,0.00010789,2]
[333704263,1722383432898,-300.0,0.00010798,2]
[333704265,1722383432908,-150.0,0.00010803,2]
[333704267,1722383432918,-300.0,0.00010806,2]
[333704269,1722383432927,-1500.0,0.00010813,2]
[333704270,1722383432937,-1500.0,0.00010816,2]
[333704272,1722383432947,-150.0,0.00010817,2]
[333704274,1722383432957,-150.0,0.00010826,2]
[333704276,1722383432966,-150.0,0.00010839,2]